[Event "Blixt-SM 2025"]
[Site "Norrköping, Sweden"]
[Date "2025.09.26"]
[Round "3.7"]
[White "Wernberg, Hugo"]
[Black "Rogoz, Vladyslav"]
[Result "1-0"]
[TimeControl "3 min + 2 sec/move"]
[WhiteTitle "FM"]
[WhiteElo "2285"]
[BlackElo "2108"]

1. g3 {[%clk 00:03:03]} {[%emt 00:00:01]} e6 {[%clk 00:03:03]} {[%emt
00:00:02]} 2. c4 {[%clk 00:03:04]} {[%emt 00:00:02]} d5 {[%clk 00:03:04]}
{[%emt 00:00:01]} 3. cxd5 {[%clk 00:03:04]} {[%emt 00:00:02]} exd5 {[%clk
00:03:04]} {[%emt 00:00:02]} 4. Bg2 {[%clk 00:03:05]} c6 {[%clk 00:03:05]} 5.
Nf3 {[%clk 00:03:06]} Nf6 {[%clk 00:03:06]} {[%emt 00:00:01]} 6. O-O {[%clk
00:03:07]} {[%emt 00:00:01]} Bd6 {[%clk 00:03:08]} 7. Nc3 {[%clk 00:03:08]}
{[%emt 00:00:02]} O-O {[%clk 00:03:09]} 8. d3 {[%clk 00:03:09]} Re8 {[%clk
00:03:10]} 9. Re1 {[%clk 00:03:10]} h6 {[%clk 00:03:11]} {[%emt 00:00:01]} 10.
e4 {[%clk 00:03:11]} dxe4 {[%clk 00:03:12]} 11. dxe4 {[%clk 00:03:11]} {[%emt
00:00:02]} Bg4 {[%clk 00:03:13]} {[%emt 00:00:02]} 12. e5 {[%clk 00:02:42]}
{[%emt 00:00:30]} Bxf3 {[%clk 00:02:23]} {[%emt 00:00:52]} 13. Bxf3 {[%clk
00:02:40]} {[%emt 00:00:04]} Qe7 {[%clk 00:02:24]} {[%emt 00:00:02]} 14. Bf4
{[%clk 00:02:35]} {[%emt 00:00:06]} g5 {[%clk 00:02:19]} {[%emt 00:00:07]} 15.
Qd2 {[%clk 00:01:46]} {[%emt 00:00:51]} gxf4 {[%clk 00:02:11]} {[%emt
00:00:10]} 16. exf6 {[%clk 00:01:39]} {[%emt 00:00:09]} Qf8 {[%clk 00:01:19]}
{[%emt 00:00:55]} 17. Rxe8 {[%clk 00:01:38]} {[%emt 00:00:02]} Qxe8 {[%clk
00:01:20]} {[%emt 00:00:02]} 18. Qxd6 {[%clk 00:01:39]} fxg3 {[%clk 00:01:17]}
{[%emt 00:00:05]} 19. Qxg3+ {[%clk 00:01:39]} {[%emt 00:00:01]} 1-0

[Event "Blixt-SM 2025"]
[Site "Norrköping, Sweden"]
[Date "2025.09.26"]
[Round "5.3"]
[White "Tadjerbashi, Amir"]
[Black "Religa, Marek"]
[Result "1-0"]
[TimeControl "3 min + 2 sec/move"]
[WhiteElo "2235"]
[BlackElo "2207"]

1. e4 {[%clk 00:03:02]} {[%emt 00:00:01]} g6 {[%clk 00:03:04]} 2. d4 {[%clk
00:03:03]} {[%emt 00:00:01]} Bg7 {[%clk 00:03:05]} 3. Nc3 {[%clk 00:03:04]} d6
{[%clk 00:03:06]} 4. Nge2 {[%clk 00:03:05]} {[%emt 00:00:02]} Nf6 {[%clk
00:02:57]} {[%emt 00:00:11]} 5. g3 {[%clk 00:03:05]} {[%emt 00:00:01]} c5
{[%clk 00:02:58]} 6. Bg2 {[%clk 00:03:05]} {[%emt 00:00:02]} O-O {[%clk
00:02:52]} {[%emt 00:00:08]} 7. h3 {[%clk 00:03:06]} {[%emt 00:00:02]} Nbd7
{[%clk 00:02:25]} {[%emt 00:00:30]} 8. O-O {[%clk 00:03:05]} {[%emt 00:00:02]}
Rb8 {[%clk 00:02:26]} 9. a4 {[%clk 00:03:05]} {[%emt 00:00:02]} a6 {[%clk
00:02:27]} 10. dxc5 {[%clk 00:02:49]} {[%emt 00:00:18]} Nxc5 {[%clk 00:02:17]}
{[%emt 00:00:12]} 11. Nd4 {[%clk 00:02:49]} {[%emt 00:00:02]} Bd7 {[%clk
00:02:16]} {[%emt 00:00:04]} 12. Re1 {[%clk 00:02:46]} {[%emt 00:00:04]} Qc8
{[%clk 00:02:05]} {[%emt 00:00:13]} 13. Kh2 {[%clk 00:02:45]} {[%emt 00:00:03]}
b5 {[%clk 00:02:06]} {[%emt 00:00:01]} 14. axb5 axb5 {[%clk 00:02:07]} 15. Nd5
{[%clk 00:02:31]} {[%emt 00:00:17]} Nxd5 {[%clk 00:02:02]} {[%emt 00:00:07]} 16.
exd5 {[%clk 00:02:31]} {[%emt 00:00:01]} e5 {[%clk 00:01:46]} {[%emt 00:00:18]}
17. dxe6 {[%clk 00:02:10]} {[%emt 00:00:23]} fxe6 {[%clk 00:01:48]} 18. Be3
{[%clk 00:01:18]} {[%emt 00:00:54]} e5 {[%clk 00:01:49]} 19. Ne2 {[%clk
00:01:12]} {[%emt 00:00:09]} Rf6 {[%clk 00:00:37]} {[%emt 00:01:14]} 20. Nc3
{[%clk 00:01:12]} {[%emt 00:00:02]} Kh8 {[%clk 00:00:21]} {[%emt 00:00:18]} 21.
Nd5 {[%clk 00:01:12]} {[%emt 00:00:02]} Re6 {[%clk 00:00:22]} 22. Ra7 {[%clk
00:01:05]} {[%emt 00:00:10]} Na4 {[%clk 00:00:09]} {[%emt 00:00:14]} 23. b3
{[%clk 00:00:59]} {[%emt 00:00:08]} Nc5 {[%emt 00:00:05]} 24. h4 {[%clk
00:00:38]} {[%emt 00:00:21]} Re8 {[%clk 00:00:04]} {[%emt 00:00:06]} 25. Nb4
{[%clk 00:00:33]} {[%emt 00:00:07]} Qd8 {[%clk 00:00:04]} {[%emt 00:00:03]} 26.
Bxc5 {[%clk 00:00:23]} {[%emt 00:00:12]} dxc5 {[%clk 00:00:05]} 27. Rxd7 {[%clk
00:00:23]} {[%emt 00:00:02]} Qf6 {[%clk 00:00:07]} 28. Nd5 {[%clk 00:00:15]}
{[%emt 00:00:10]} Qf5 {[%clk 00:00:08]} 29. Ne3 {[%clk 00:00:12]} {[%emt
00:00:05]} Qxf2 {[%clk 00:00:08]} {[%emt 00:00:02]} 30. Re2 {[%clk 00:00:08]}
{[%emt 00:00:06]} Qf6 {[%clk 00:00:09]} {[%emt 00:00:01]} 31. Nd5 {[%clk
00:00:08]} {[%emt 00:00:03]} Qf5 {[%clk 00:00:09]} {[%emt 00:00:02]} 32. Ne3
{[%clk 00:00:07]} {[%emt 00:00:03]} Qf6 {[%clk 00:00:10]} {[%emt 00:00:02]} 33.
Red2 {[%clk 00:00:08]} Rf8 {[%clk 00:00:09]} {[%emt 00:00:02]} 34. R2d6 {[%clk
00:00:08]} {[%emt 00:00:02]} Qf2 {[%clk 00:00:08]} {[%emt 00:00:04]} 35. Rd3
{[%clk 00:00:08]} {[%emt 00:00:02]} c4 {[%clk 00:00:09]} 36. Ng4 {[%clk
00:00:09]} Qf5 {[%clk 00:00:09]} {[%emt 00:00:01]} 37. bxc4 {[%clk 00:00:08]}
{[%emt 00:00:03]} bxc4 {[%clk 00:00:10]} {[%emt 00:00:02]} 38. Rd2 {[%clk
00:00:09]} Rb2 {[%clk 00:00:05]} {[%emt 00:00:07]} 39. Rf2 {[%clk 00:00:10]}
Qe6 {[%clk 00:00:05]} {[%emt 00:00:02]} 40. Rxf8+ {[%clk 00:00:10]} {[%emt
00:00:02]} Bxf8 {[%clk 00:00:06]} 41. Rc7 {[%clk 00:00:05]} {[%emt 00:00:07]}
Rb8 {[%clk 00:00:06]} {[%emt 00:00:02]} 42. Qd7 {[%clk 00:00:06]} Qxd7 {[%clk
00:00:07]} {[%emt 00:00:01]} 43. Rxd7 {[%clk 00:00:07]} Bg7 {[%clk 00:00:08]}
44. Ne3 {[%clk 00:00:08]} {[%emt 00:00:02]} Rc8 {[%clk 00:00:08]} {[%emt
00:00:02]} 45. Rd5 {[%clk 00:00:08]} {[%emt 00:00:02]} c3 {[%clk 00:00:08]}
{[%emt 00:00:02]} 46. Rd3 {[%clk 00:00:09]} e4 {[%clk 00:00:07]} {[%emt
00:00:03]} 47. Bxe4 {[%emt 00:00:01]} Re8 48. Bf3 {[%clk 00:00:10]} {[%emt
00:00:01]} Rb8 {[%clk 00:00:10]} 49. Kh3 {[%clk 00:00:11]} h6 {[%clk 00:00:11]}
50. Nd5 {[%clk 00:00:13]} Rb2 {[%clk 00:00:11]} {[%emt 00:00:02]} 51. Be4
{[%clk 00:00:11]} {[%emt 00:00:03]} Rxc2 {[%clk 00:00:07]} {[%emt 00:00:07]} 52.
Bxg6 {[%clk 00:00:11]} {[%emt 00:00:01]} Rf2 {[%clk 00:00:03]} {[%emt
00:00:06]} 53. Nf4 {[%clk 00:00:12]} {[%emt 00:00:02]} Bf8 {[%emt 00:00:03]}
1-0

[Event "Blixt-SM 2025"]
[Site "Norrköping, Sweden"]
[Date "2025.09.26"]
[Round "6.9"]
[White "Religa, Marek"]
[Black "Sjoholm, Emil"]
[Result "1-0"]
[TimeControl "3 min + 2 sec/move"]
[WhiteElo "2207"]
[BlackElo "2062"]

1. e4 {[%clk 00:03:01]} {[%emt 00:00:02]} e5 {[%clk 00:03:03]} {[%emt
00:00:01]} 2. Nf3 {[%clk 00:03:03]} {[%emt 00:00:01]} Nc6 {[%clk 00:03:04]} 3.
Bc4 {[%clk 00:03:04]} Bc5 {[%clk 00:03:05]} {[%emt 00:00:02]} 4. O-O {[%clk
00:03:04]} Nf6 {[%clk 00:03:06]} {[%emt 00:00:01]} 5. d4 {[%clk 00:03:05]} Bxd4
{[%clk 00:02:58]} {[%emt 00:00:11]} 6. Nxd4 {[%clk 00:03:06]} Nxd4 {[%clk
00:02:56]} {[%emt 00:00:04]} 7. Bg5 {[%clk 00:03:07]} {[%emt 00:00:01]} h6
{[%clk 00:02:53]} {[%emt 00:00:06]} 8. Bh4 {[%clk 00:03:08]} g5 {[%clk
00:02:49]} {[%emt 00:00:05]} 9. f4 {[%clk 00:03:08]} {[%emt 00:00:02]} d5
{[%clk 00:01:17]} {[%emt 00:01:34]} 10. exd5 {[%clk 00:02:00]} {[%emt
00:01:10]} Bg4 {[%clk 00:00:36]} {[%emt 00:00:43]} 11. Qd2 {[%clk 00:02:00]}
{[%emt 00:00:02]} gxh4 {[%clk 00:00:15]} {[%emt 00:00:24]} 12. fxe5 {[%clk
00:02:00]} {[%emt 00:00:02]} Nf3+ {[%clk 00:00:03]} {[%emt 00:00:14]} 13. gxf3
{[%clk 00:01:33]} {[%emt 00:00:29]} Bh3 {[%clk 00:00:05]} 14. Rf2 {[%clk
00:01:19]} {[%emt 00:00:16]} Nh5 {[%clk 00:00:06]} 15. f4 {[%clk 00:01:04]}
{[%emt 00:00:17]} Rg8+ {[%clk 00:00:07]} {[%emt 00:00:01]} 16. Kh1 {[%clk
00:01:04]} {[%emt 00:00:02]} Qd7 {[%clk 00:00:09]} {[%emt 00:00:01]} 17. e6
{[%clk 00:00:26]} {[%emt 00:00:40]} fxe6 {[%clk 00:00:09]} {[%emt 00:00:02]} 18.
dxe6 {[%clk 00:00:07]} {[%emt 00:00:20]} Qxd2 {[%clk 00:00:10]} 19. Nxd2 {[%clk
00:00:07]} {[%emt 00:00:02]} Ke7 {[%clk 00:00:12]} 20. f5 {[%clk 00:00:05]}
{[%emt 00:00:05]} Nf6 {[%clk 00:00:13]} 21. Nf3 {[%clk 00:00:06]} {[%emt
00:00:02]} Rg4 {[%clk 00:00:12]} {[%emt 00:00:03]} 22. Ne5 {[%clk 00:00:06]}
Re4 {[%clk 00:00:12]} {[%emt 00:00:02]} 23. Ng6+ {[%clk 00:00:07]} Kd6 {[%clk
00:00:14]} {[%emt 00:00:01]} 24. Rd1+ {[%clk 00:00:07]} {[%emt 00:00:01]} Kc5
{[%clk 00:00:14]} {[%emt 00:00:02]} 25. Bd3 {[%clk 00:00:08]} {[%emt 00:00:01]}
Rd4 {[%clk 00:00:14]} {[%emt 00:00:02]} 26. Ne5 {[%clk 00:00:07]} {[%emt
00:00:03]} Rg8 {[%clk 00:00:15]} {[%emt 00:00:01]} 27. Rg1 {[%clk 00:00:07]}
{[%emt 00:00:03]} Rxg1+ {[%clk 00:00:15]} {[%emt 00:00:01]} 28. Kxg1 {[%clk
00:00:09]} h5 {[%clk 00:00:14]} {[%emt 00:00:04]} 29. e7 {[%clk 00:00:10]} Ng4
{[%clk 00:00:10]} {[%emt 00:00:06]} 30. e8=Q {[%clk 00:00:08]} {[%emt
00:00:07]} Nxf2 {[%clk 00:00:10]} {[%emt 00:00:05]} 31. Kxf2 {[%clk 00:00:09]}
Rf4+ {[%clk 00:00:11]} {[%emt 00:00:01]} 32. Ke3 {[%emt 00:00:10]} 1-0

[Event "Blixt-SM 2025"]
[Site "Norrköping, Sweden"]
[Date "2025.09.26"]
[Round "8.5"]
[White "Rogoz, Vladyslav"]
[Black "Nygren, Kim"]
[Result "1-0"]
[TimeControl "3 min + 2 sec/move"]
[BlackTitle "CM"]
[WhiteElo "2108"]
[BlackElo "2173"]

1. d4 {[%clk 00:03:03]} d5 {[%clk 00:03:02]} {[%emt 00:00:03]} 2. c4 {[%clk
00:03:04]} e6 {[%clk 00:03:03]} {[%emt 00:00:01]} 3. Nf3 {[%clk 00:03:05]}
{[%emt 00:00:01]} a6 {[%clk 00:03:04]} {[%emt 00:00:01]} 4. c5 {[%clk
00:03:06]} Be7 {[%clk 00:02:52]} {[%emt 00:00:14]} 5. Nc3 {[%clk 00:03:07]}
{[%emt 00:00:01]} Nf6 {[%clk 00:02:52]} {[%emt 00:00:03]} 6. Bg5 {[%clk
00:03:05]} {[%emt 00:00:04]} Ng4 {[%clk 00:02:36]} {[%emt 00:00:17]} 7. Bxe7
{[%clk 00:03:04]} {[%emt 00:00:03]} Qxe7 {[%clk 00:02:37]} 8. e3 {[%clk
00:03:02]} {[%emt 00:00:04]} c6 {[%clk 00:02:26]} {[%emt 00:00:13]} 9. Be2
{[%clk 00:02:58]} {[%emt 00:00:06]} e5 {[%clk 00:02:21]} {[%emt 00:00:07]} 10.
h3 {[%clk 00:02:56]} {[%emt 00:00:04]} exd4 {[%clk 00:02:20]} {[%emt 00:00:02]}
11. Nxd4 {[%clk 00:02:47]} {[%emt 00:00:11]} Ne5 {[%clk 00:02:07]} {[%emt
00:00:15]} 12. b4 {[%clk 00:02:38]} {[%emt 00:00:11]} O-O {[%clk 00:01:56]}
{[%emt 00:00:12]} 13. O-O {[%clk 00:02:31]} {[%emt 00:00:09]} f5 {[%clk
00:01:51]} {[%emt 00:00:08]} 14. Nf3 {[%clk 00:02:14]} {[%emt 00:00:19]} Ng6
{[%clk 00:01:43]} {[%emt 00:00:10]} 15. Bd3 {[%clk 00:02:12]} {[%emt 00:00:04]}
Nd7 {[%clk 00:01:43]} {[%emt 00:00:02]} 16. Qc2 {[%clk 00:02:12]} {[%emt
00:00:03]} Nde5 {[%clk 00:01:41]} {[%emt 00:00:04]} 17. Nxe5 {[%clk 00:02:04]}
{[%emt 00:00:09]} Qxe5 {[%clk 00:01:42]} 18. Ne2 {[%clk 00:02:00]} {[%emt
00:00:06]} Bd7 {[%clk 00:01:38]} {[%emt 00:00:06]} 19. Nd4 {[%clk 00:02:00]}
{[%emt 00:00:02]} Rae8 {[%clk 00:01:27]} {[%emt 00:00:13]} 20. a4 {[%clk
00:01:58]} {[%emt 00:00:04]} Rf6 {[%clk 00:01:26]} {[%emt 00:00:02]} 21. b5
{[%clk 00:01:58]} {[%emt 00:00:03]} axb5 {[%clk 00:01:27]} {[%emt 00:00:02]} 22.
axb5 {[%clk 00:01:59]} Nh4 {[%clk 00:01:28]} 23. Ne2 {[%clk 00:01:24]} {[%emt
00:00:36]} cxb5 {[%clk 00:01:05]} {[%emt 00:00:26]} 24. Ra7 {[%clk 00:01:21]}
{[%emt 00:00:05]} Bc6 {[%clk 00:01:06]} 25. Rfa1 {[%clk 00:01:14]} {[%emt
00:00:10]} Rg6 {[%clk 00:01:03]} {[%emt 00:00:04]} 26. Nf4 {[%clk 00:01:14]}
{[%emt 00:00:02]} Rg5 {[%clk 00:00:49]} {[%emt 00:00:16]} 27. Ra8 {[%clk
00:01:15]} {[%emt 00:00:01]} d4 {[%clk 00:00:45]} {[%emt 00:00:05]} 28. Rxe8+
{[%clk 00:00:39]} {[%emt 00:00:38]} Qxe8 {[%clk 00:00:36]} {[%emt 00:00:12]} 29.
Qa2+ {[%clk 00:00:40]} {[%emt 00:00:02]} Kh8 {[%clk 00:00:27]} {[%emt
00:00:10]} 30. Qa8 {[%clk 00:00:38]} {[%emt 00:00:04]} dxe3 {[%clk 00:00:13]}
{[%emt 00:00:16]} 31. Qxe8+ {[%clk 00:00:38]} {[%emt 00:00:02]} Bxe8 {[%clk
00:00:15]} 32. Ra8 {[%clk 00:00:40]} exf2+ {[%clk 00:00:14]} {[%emt 00:00:03]}
33. Kxf2 {[%clk 00:00:39]} {[%emt 00:00:02]} h6 34. Rxe8+ {[%emt 00:00:03]} 1-0

[ePGN "0.1;DGT LiveChess/2.2.7"]

[Event "Blixt-SM 2025"]
[Site "Norrköping, Sweden"]
[Date "2025.09.26"]
[Round "10.1"]
[White "Seo, Jung Min"]
[Black "Olsson, Linus"]
[Result "1-0"]
[TimeControl "3 min + 2 sec/move"]
[WhiteTitle "IM"]
[BlackTitle "FM"]
[WhiteElo "2480"]
[BlackElo "2166"]

1. e4 {[%clk 00:03:04]} {[%emt 00:10:17]} c5 {[%clk 00:03:03]} {[%emt
00:00:02]} 2. Nf3 {[%clk 00:03:05]} d6 {[%clk 00:03:04]} 3. c3 {[%clk
00:03:04]} {[%emt 00:00:02]} Nf6 {[%clk 00:02:57]} {[%emt 00:00:09]} 4. h3
{[%clk 00:03:03]} {[%emt 00:00:03]} g6 {[%clk 00:02:55]} {[%emt 00:00:05]} 5.
Bd3 {[%clk 00:02:51]} {[%emt 00:00:14]} Bg7 {[%clk 00:02:54]} {[%emt 00:00:02]}
6. O-O {[%clk 00:02:51]} {[%emt 00:00:02]} O-O {[%clk 00:02:54]} {[%emt
00:00:02]} 7. Re1 {[%clk 00:02:52]} {[%emt 00:00:01]} Nc6 {[%clk 00:02:53]}
{[%emt 00:00:04]} 8. Bc2 {[%clk 00:02:41]} {[%emt 00:00:13]} e5 {[%clk
00:02:43]} {[%emt 00:00:11]} 9. d4 {[%clk 00:02:13]} {[%emt 00:00:30]} cxd4
{[%clk 00:02:33]} {[%emt 00:00:13]} 10. cxd4 {[%clk 00:02:14]} exd4 {[%clk
00:02:34]} {[%emt 00:00:01]} 11. Nxd4 {[%clk 00:02:15]} Nxd4 {[%clk 00:02:33]}
{[%emt 00:00:02]} 12. Qxd4 {[%clk 00:02:16]} {[%emt 00:00:01]} Re8 {[%clk
00:02:20]} {[%emt 00:00:16]} 13. Qd1 {[%clk 00:02:05]} {[%emt 00:00:13]} Be6
{[%clk 00:02:04]} {[%emt 00:00:18]} 14. Nc3 {[%clk 00:02:04]} {[%emt 00:00:02]}
a6 {[%clk 00:02:01]} {[%emt 00:00:05]} 15. Be3 {[%clk 00:02:02]} {[%emt
00:00:05]} Rc8 {[%clk 00:01:52]} {[%emt 00:00:11]} 16. Bd4 {[%clk 00:01:59]}
{[%emt 00:00:05]} b5 {[%clk 00:01:33]} {[%emt 00:00:21]} 17. a3 {[%clk
00:01:58]} {[%emt 00:00:03]} Qc7 {[%clk 00:01:18]} {[%emt 00:00:16]} 18. Qd2
{[%clk 00:01:32]} {[%emt 00:00:28]} Red8 {[%clk 00:01:15]} {[%emt 00:00:06]} 19.
Rad1 {[%clk 00:01:18]} {[%emt 00:00:16]} Qb7 {[%clk 00:01:08]} {[%emt
00:00:09]} 20. Qf4 {[%clk 00:01:17]} {[%emt 00:00:02]} Nh5 {[%clk 00:01:06]}
{[%emt 00:00:04]} 21. Qg5 {[%clk 00:00:49]} {[%emt 00:00:31]} Bxd4 {[%clk
00:00:49]} {[%emt 00:00:20]} 22. Rxd4 {[%clk 00:00:50]} Kg7 {[%clk 00:00:39]}
{[%emt 00:00:12]} 23. Red1 {[%clk 00:00:49]} {[%emt 00:00:03]} Qb6 {[%clk
00:00:34]} {[%emt 00:00:06]} 24. Rxd6 {[%clk 00:00:30]} {[%emt 00:00:21]} f6
{[%clk 00:00:12]} {[%emt 00:00:25]} 25. Rxb6 {[%clk 00:00:26]} {[%emt
00:00:07]} fxg5 {[%clk 00:00:08]} {[%emt 00:00:05]} 26. Rxe6 {[%clk 00:00:24]}
{[%emt 00:00:03]} Nf4 {[%clk 00:00:08]} {[%emt 00:00:02]} 27. Rxa6 {[%clk
00:00:19]} {[%emt 00:00:08]} Rxd1+ {[%clk 00:00:08]} 28. Bxd1 {[%clk 00:00:20]}
{[%emt 00:00:02]} Rd8 {[%clk 00:00:09]} {[%emt 00:00:01]} 29. g3 {[%clk
00:00:16]} {[%emt 00:00:06]} Nd3 {[%clk 00:00:08]} {[%emt 00:00:02]} 30. b4
{[%clk 00:00:11]} {[%emt 00:00:07]} Rc8 {[%clk 00:00:07]} {[%emt 00:00:03]} 31.
Nd5 {[%clk 00:00:04]} {[%emt 00:00:09]} Rc1 {[%clk 00:00:08]} {[%emt 00:00:01]}
32. Ne3 {[%clk 00:00:05]} Ne5 {[%clk 00:00:09]} {[%emt 00:00:02]} 33. Kg2
{[%clk 00:00:06]} {[%emt 00:00:01]} Ra1 {[%clk 00:00:07]} {[%emt 00:00:03]} 34.
Be2 {[%clk 00:00:07]} {[%emt 00:00:02]} Re1 {[%clk 00:00:07]} {[%emt 00:00:01]}
35. Bxb5 {[%clk 00:00:07]} {[%emt 00:00:02]} h5 {[%clk 00:00:09]} 36. Re6
{[%clk 00:00:07]} {[%emt 00:00:02]} Nf7 {[%clk 00:00:09]} {[%emt 00:00:02]} 37.
Bc4 {[%clk 00:00:07]} {[%emt 00:00:01]} h4 {[%clk 00:00:10]} {[%emt 00:00:02]}
38. Re7 {[%clk 00:00:08]} {[%emt 00:00:02]} hxg3 {[%clk 00:00:09]} {[%emt
00:00:02]} 39. Rxf7+ {[%clk 00:00:08]} {[%emt 00:00:01]} Kh8 {[%clk 00:00:10]}
{[%emt 00:00:02]} 40. Kxg3 {[%clk 00:00:07]} {[%emt 00:00:03]} Rg1+ {[%clk
00:00:10]} {[%emt 00:00:01]} 41. Kh2 {[%clk 00:00:08]} Rc1 {[%clk 00:00:11]}
{[%emt 00:00:01]} 42. Rd7 {[%clk 00:00:07]} {[%emt 00:00:03]} g4 {[%clk
00:00:11]} {[%emt 00:00:03]} 43. Be2 {[%clk 00:00:05]} {[%emt 00:00:03]} g3+
{[%clk 00:00:11]} {[%emt 00:00:03]} 44. Kxg3 {[%clk 00:00:05]} {[%emt
00:00:02]} g5 {[%clk 00:00:12]} 45. Ng2 {[%clk 00:00:05]} {[%emt 00:00:02]} g4
{[%clk 00:00:13]} 46. hxg4 {[%clk 00:00:05]} {[%emt 00:00:02]} Rc3+ {[%clk
00:00:13]} {[%emt 00:00:02]} 47. Rd3 {[%clk 00:00:06]} {[%emt 00:00:01]} Rc6
{[%clk 00:00:14]} 48. f4 {[%clk 00:00:07]} Rc2 {[%clk 00:00:14]} {[%emt
00:00:02]} 49. Re3 {[%clk 00:00:07]} {[%emt 00:00:01]} Rc7 {[%clk 00:00:15]} 50.
g5 {[%clk 00:00:08]} {[%emt 00:00:01]} Kg7 {[%clk 00:00:16]} 51. f5 {[%clk
00:00:09]} Rc1 {[%clk 00:00:17]} 52. Kf4 {[%clk 00:00:10]} {[%emt 00:00:01]}
Rg1 {[%clk 00:00:18]} {[%emt 00:00:01]} 53. Bf3 {[%clk 00:00:11]} {[%emt
00:00:02]} Rf1 {[%clk 00:00:19]} 54. e5 {[%clk 00:00:12]} {[%emt 00:00:01]} Rc1
{[%clk 00:00:19]} {[%emt 00:00:01]} 55. a4 {[%clk 00:00:13]} {[%emt 00:00:02]}
Rc4+ {[%clk 00:00:19]} 56. Re4 {[%clk 00:00:14]} {[%emt 00:00:01]} Rc3 {[%clk
00:00:20]} 57. b5 {[%clk 00:00:14]} {[%emt 00:00:02]} Ra3 {[%clk 00:00:22]}
{[%emt 00:00:01]} 58. e6 {[%clk 00:00:15]} Rc3 {[%clk 00:00:22]} 59. f6+ {[%clk
00:00:16]} {[%emt 00:00:01]} Kg6 {[%clk 00:00:23]} 60. Nh4+ {[%clk 00:00:16]}
{[%emt 00:00:02]} Kh7 {[%clk 00:00:24]} {[%emt 00:00:01]} 61. a5 {[%clk
00:00:16]} {[%emt 00:00:03]} Rc1 {[%clk 00:00:22]} {[%emt 00:00:04]} 62. Rd4
{[%clk 00:00:16]} Rg1 {[%clk 00:00:21]} {[%emt 00:00:03]} 63. Rd7+ {[%clk
00:00:17]} {[%emt 00:00:02]} Kg8 {[%clk 00:00:21]} {[%emt 00:00:01]} 64. Rg7+
{[%clk 00:00:16]} {[%emt 00:00:03]} 1-0

[Event "Blixt-SM 2025"]
[Site "Norrköping, Sweden"]
[Date "2025.09.26"]
[Round "11.7"]
[White "Berovski, Krum"]
[Black "Sjoholm, Emil"]
[Result "1-0"]
[TimeControl "3 min + 2 sec/move"]
[WhiteElo "2344"]
[BlackElo "2062"]

1. d4 {[%clk 00:03:02]} {[%emt 00:00:01]} Nf6 {[%clk 00:03:03]} {[%emt
00:00:02]} 2. c4 {[%clk 00:03:03]} e6 {[%clk 00:03:05]} 3. Nc3 {[%clk
00:03:04]} c5 {[%clk 00:03:06]} {[%emt 00:00:01]} 4. d5 {[%clk 00:03:05]} exd5
{[%clk 00:03:07]} {[%emt 00:00:01]} 5. cxd5 {[%clk 00:03:06]} d6 {[%clk
00:03:08]} {[%emt 00:00:01]} 6. e4 {[%clk 00:03:06]} {[%emt 00:00:02]} g6
{[%clk 00:03:09]} 7. f4 {[%clk 00:03:07]} Bg7 {[%clk 00:03:10]} 8. Bb5+ {[%clk
00:03:08]} {[%emt 00:00:01]} Nbd7 {[%clk 00:03:11]} {[%emt 00:00:02]} 9. e5
{[%clk 00:03:07]} {[%emt 00:00:03]} dxe5 {[%clk 00:03:11]} {[%emt 00:00:02]} 10.
fxe5 {[%clk 00:03:08]} Nh5 {[%clk 00:03:12]} 11. e6 {[%clk 00:03:07]} {[%emt
00:00:04]} Qh4+ {[%clk 00:03:12]} {[%emt 00:00:02]} 12. g3 {[%clk 00:03:08]}
{[%emt 00:00:02]} Nxg3 {[%clk 00:03:12]} {[%emt 00:00:02]} 13. hxg3 {[%clk
00:03:09]} Qxh1 {[%clk 00:03:12]} {[%emt 00:00:02]} 14. exd7+ {[%clk 00:03:02]}
{[%emt 00:00:08]} Bxd7 {[%clk 00:03:11]} {[%emt 00:00:03]} 15. Bxd7+ {[%clk
00:03:00]} {[%emt 00:00:05]} Kxd7 {[%clk 00:03:12]} 16. Qa4+ {[%clk 00:02:38]}
{[%emt 00:00:24]} Kd8 {[%clk 00:02:50]} {[%emt 00:00:23]} 17. Bg5+ {[%clk
00:02:36]} {[%emt 00:00:05]} f6 {[%clk 00:02:50]} {[%emt 00:00:02]} 18. Be3
{[%clk 00:02:36]} {[%emt 00:00:02]} Re8 {[%clk 00:02:49]} {[%emt 00:00:03]} 19.
Kd2 {[%clk 00:02:28]} {[%emt 00:00:10]} Bh6 {[%clk 00:01:35]} {[%emt 00:01:16]}
20. Bxh6 {[%clk 00:01:58]} {[%emt 00:00:31]} Qxh6+ {[%clk 00:01:35]} {[%emt
00:00:03]} 21. Qf4 {[%clk 00:01:52]} {[%emt 00:00:08]} Qxf4+ {[%clk 00:01:35]}
{[%emt 00:00:02]} 22. gxf4 {[%clk 00:01:53]} Kd7 {[%clk 00:01:25]} {[%emt
00:00:12]} 23. Nf3 {[%clk 00:01:49]} {[%emt 00:00:06]} Re7 {[%clk 00:01:14]}
{[%emt 00:00:13]} 24. Rh1 {[%clk 00:01:45]} {[%emt 00:00:06]} b6 {[%clk
00:01:09]} {[%emt 00:00:07]} 25. Rh6 {[%clk 00:01:42]} {[%emt 00:00:05]} Rg8
{[%clk 00:00:59]} {[%emt 00:00:11]} 26. Nh2 {[%clk 00:01:25]} {[%emt 00:00:19]}
a6 {[%emt 00:00:17]} 27. Ng4 {[%clk 00:01:25]} Rf8 {[%clk 00:00:42]} {[%emt
00:00:05]} 28. a4 {[%clk 00:01:12]} {[%emt 00:00:16]} Kd6 {[%clk 00:00:42]}
{[%emt 00:00:03]} 29. f5 {[%clk 00:01:11]} {[%emt 00:00:03]} gxf5 {[%clk
00:00:28]} {[%emt 00:00:15]} 30. Nxf6 {[%clk 00:01:10]} {[%emt 00:00:03]} Ke5
{[%clk 00:00:25]} {[%emt 00:00:05]} 31. Nh5 {[%clk 00:00:46]} {[%emt 00:00:26]}
f4 {[%clk 00:00:14]} {[%emt 00:00:13]} 32. Ke2 {[%clk 00:00:45]} {[%emt
00:00:03]} f3+ {[%emt 00:00:02]} 33. Kf2 {[%clk 00:00:46]} Rg7 {[%clk
00:00:08]} {[%emt 00:00:09]} 34. Nxg7 {[%emt 00:00:04]} 1-0